bitfinex/quotes_SOLUSD_20240708
["timestamp","ask_amount","ask_price","bid_price","bid_amount"]
[1720471371151,9.91,139.38,139.33,9.91]
[1720471372236,10.08,139.39,139.34,9.91]
[1720471372433,17.2543,139.39,139.34,9.91]
[1720471372658,7.1746,139.38,139.34,9.91]
[1720471373070,9.91,139.38,139.33,9.91]
[1720471373734,7.1753,139.37,139.33,9.91]
[1720471374081,17.086,139.36,139.31,9.91]
[1720471374261,7.1761,139.35,139.31,9.91]
[1720471374436,17.0858,139.36,139.31,9.91]
[1720471375060,9.91,139.36,139.31,9.91]
[1720471375444,7.1757,139.36,139.31,9.91]
[1720471375766,17.0858,139.36,139.31,9.91]
[1720471375975,17.0858,139.36,139.29,16.4306]
[1720471376275,9.91,139.36,139.31,9.91]
[1720471376451,9.91,139.36,139.29,16.4306]
[1720471376452,10.08,139.37,139.32,9.91]
[1720471376651,17.2551,139.37,139.32,9.91]
[1720471376847,9.91,139.36,139.32,9.91]
[1720471377064,17.2551,139.37,139.32,9.91]
[1720471377377,9.91,139.36,139.29,16.4306]
[1720471377579,9.91,139.36,139.31,9.91]
[1720471380369,6.1474,139.4,139.3,0.17]
[1720471380674,9.91,139.38,139.34,9.91]
[1720471380868,17.0847,139.38,139.34,9.91]
[1720471381267,17.0847,139.38,139.33,9.91]
[1720471381467,7.1747,139.38,139.33,9.91]
[1720471381649,17.0847,139.38,139.33,9.91]
[1720471381850,9.91,139.38,139.33,9.91]
[1720471382051,17.2543,139.39,139.34,9.91]
[1720471382871,7.1747,139.38,139.34,9.91]
[1720471383562,7.1747,139.38,139.3,100.0]
[1720471383761,17.0847,139.38,139.33,9.91]
[1720471384259,0.17,139.39,139.33,9.91]
[1720471384260,17.0852,139.37,139.33,9.91]
[1720471385354,7.1758,139.36,139.33,9.91]
[1720471385677,7.1777,139.32,139.29,9.91]
[1720471385858,7.1783,139.31,139.28,0.8597352]
[1720471386681,9.91,139.29,139.28,0.8597352]
[1720471387275,17.0892,139.29,139.28,0.8597352]
[1720471387675,9.91,139.29,139.28,0.8597352]
[1720471392380,7.1783,139.31,139.28,0.8597352]
[1720471392559,9.91,139.29,139.28,0.8597352]
[1720471392859,9.91,139.3,139.28,0.8597352]
[1720471393396,7.1801,139.28,139.2,6.1858]
[1720471393559,26.8612,139.29,139.2,6.1858]
[1720471393560,17.2603,139.27,139.2,6.1858]
[1720471393759,17.0903,139.27,139.22,9.91]
[1720471394162,17.0903,139.27,139.18,15.4311]
[1720471394489,9.91,139.25,139.2,9.91]
[1720471394862,9.91,139.25,139.18,15.4311]
[1720471395069,9.91,139.25,139.2,9.91]
[1720471395262,17.432,139.24,139.15,19.29093949]
[1720471395475,9.91,139.23,139.16,20.0]
[1720471395683,9.91,139.22,139.15,6.1222]
[1720471395987,9.91,139.2,139.14,0.8597352]
[1720471396174,9.91,139.2,139.15,9.91]
[1720471396612,7.1845,139.19,139.14,0.8597352]
[1720471396875,0.17,139.21,139.15,9.91]
[1720471397189,0.17,139.19,139.15,9.91]
[1720471397378,0.34,139.19,139.15,9.91]
[1720471397767,10.25,139.19,139.14,10.7697352]
[1720471398387,17.4344,139.19,139.14,10.7697352]
[1720471398585,0.34,139.19,139.14,0.8597352]
[1720471398789,0.17,139.19,139.14,0.8597352]
[1720471398957,18.3003,139.2,139.14,0.8597352]
[1720471399161,7.1863,139.16,139.14,0.8597352]
[1720471399375,0.17,139.15,139.14,0.8597352]
[1720471399961,7.5264,139.15,139.14,0.8597352]
[1720471400592,7.5264,139.15,139.14,0.3597352]
[1720471400989,7.5264,139.15,139.03,16.6133]
[1720471400990,0.17,139.12,139.03,16.6133]
[1720471401317,0.17,139.12,139.02,126.1244]
[1720471401318,7.1892,139.1,139.02,26.1244]
[1720471401627,0.17,139.09,139.02,26.1244]
[1720471401919,24.5562,139.12,139.02,6.2544]
[1720471402227,7.1891,139.1,139.02,6.2544]
[1720471402518,0.17,139.09,139.02,6.2544]
[1720471403409,7.1917,139.05,139.0,100.8597352]
[1720471403614,0.17,139.09,139.0,0.8597352]
[1720471403793,7.1902,139.08,139.0,0.8597352]
[1720471403993,0.17,139.07,139.0,0.8597352]
[1720471404216,7.1901,139.08,139.0,100.8597352]
[1720471404416,16.7606,139.08,139.0,0.8597352]
[1720471404584,16.5906,139.08,139.0,0.8597352]
[1720471404788,0.34,139.07,139.0,0.8597352]
[1720471404984,7.1915,139.06,139.0,0.8597352]
[1720471405217,0.17,139.05,139.0,0.8597352]
[1720471405604,13.5315,139.03,139.0,0.3597352]
[1720471405813,0.17,139.02,139.0,0.3597352]
[1720471407218,0.34,139.02,139.0,0.3597352]
[1720471407730,7.1963,138.96,138.89,6.2694]
[1720471407932,0.17,139.0,138.89,6.2694]
[1720471407933,7.3659,138.97,138.89,6.2694]
[1720471408132,7.5344,139.0,138.9,100.0]
[1720471408312,0.17,139.0,138.9,100.0]
[1720471408640,7.3647,139.0,138.91,100.0]
[1720471408931,16.6024,139.01,138.93,100.0]
[1720471409447,0.17,139.0,138.93,100.0]
[1720471409741,0.17,139.0,138.9,100.0]
[1720471409914,0.17,139.0,138.91,120.0]
[1720471410228,0.17,139.0,138.91,20.0]
[1720471411436,7.5343,139.0,138.91,20.0]
[1720471411820,0.17,139.0,138.92,100.0]
[1720471412135,16.6024,139.01,138.94,100.0]
[1720471412812,16.6024,139.01,138.91,0.17]
[1720471412813,16.6024,139.01,138.92,100.0]
[1720471413239,16.6024,139.01,138.91,0.17]
[1720471413443,0.34,139.0,138.89,6.2694]
[1720471413742,7.1949,138.99,138.9,20.0]
[1720471414051,0.17,138.98,138.9,20.0]
[1720471414215,0.34,139.0,138.9,120.0]
[1720471414410,0.34,139.0,138.91,19.87]
[1720471414841,7.5342,139.0,138.91,19.87]
[1720471415628,0.34,139.0,138.9,20.0]
[1720471415832,0.34,139.0,138.89,6.2694]
[1720471416020,7.1953,138.98,138.89,6.2694]
[1720471416352,0.34,139.0,138.89,6.2694]
[1720471416651,7.5343,139.0,138.91,100.0]
[1720471417425,7.1948,138.99,138.91,100.0]
[1720471417624,0.17,138.98,138.9,0.17]
[1720471417841,0.17,138.98,138.89,6.2694]
[1720471419725,7.5354,138.98,138.89,6.2694]
[1720471420367,7.5354,138.98,138.88,20.04]
[1720471420644,7.5354,138.98,138.89,20.0]
[1720471421057,7.1958,138.97,138.89,20.0]
[1720471421757,7.5353,138.98,138.89,20.0]
[1720471422129,13.3227,138.97,138.87,115.1169]
[1720471422327,0.17,138.96,138.88,20.0]
[1720471422560,7.1974,138.94,138.88,20.0]
[1720471422744,0.17,138.96,138.87,15.1169]
[1720471423058,0.17,138.96,138.87,0.17]
[1720471423237,7.3665,138.96,138.87,0.17]
[1720471423858,0.17,138.96,138.87,0.17]
[1720471424246,0.34,138.96,138.87,20.0]
[1720471424448,16.5178,138.94,138.86,0.8597352]
[1720471424750,0.34,138.93,138.86,0.8597352]
[1720471425262,7.538,138.93,138.86,0.8597352]
[1720471425636,0.34,138.93,138.86,0.8597352]
[1720471426760,16.5178,138.94,138.86,0.8597352]
[1720471427254,0.17,138.93,138.86,0.8597352]
[1720471427953,16.5178,138.94,138.86,100.8597352]
[1720471429456,7.3678,138.93,138.86,0.8597352]
[1720471432950,7.5378,138.93,138.86,0.8597352]
[1720471433669,0.17,138.93,138.86,0.8597352]
[1720471433967,7.369,138.91,138.86,0.8597352]
[1720471434141,15.2304,138.9,138.86,0.8597352]
[1720471434339,0.17,138.89,138.86,0.8597352]
[1720471435968,15.2304,138.9,138.86,0.8597352]
[1720471438072,8.2304,138.9,138.86,0.8597352]
[1720471438450,0.17,138.89,138.86,0.8597352]
[1720471438646,8.2304,138.9,138.86,0.8597352]
[1720471439966,8.2304,138.9,138.86,100.8597352]
[1720471440269,6.0996,138.92,138.86,100.8597352]
[1720471441467,6.0996,138.92,138.86,0.8597352]
[1720471441861,0.34,138.91,138.86,0.8597352]
[1720471442059,0.17,138.91,138.86,0.8597352]
[1720471442373,7.3693,138.91,138.86,0.8597352]
[1720471442868,7.1996,138.9,138.86,0.8597352]
[1720471443255,0.17,138.89,138.86,0.8597352]
[1720471445483,6.1413,138.87,138.86,0.8597352]
[1720471446359,13.3422,138.87,138.86,0.8597352]
[1720471446590,13.5122,138.87,138.86,0.8597352]
[1720471446875,7.2016,138.86,138.74,260.3178]
[1720471447083,7.3716,138.86,138.75,19.94]
[1720471447565,0.17,138.86,138.78,100.0]
[1720471447894,21.8886,138.87,138.78,100.0]
[1720471448268,15.7473,138.87,138.81,19.94]
[1720471448452,6.6533,138.9,138.82,100.0]
[1720471448659,6.6533,138.9,138.88,7.2001]
[1720471450454,6.0656,138.93,138.85,0.17]
[1720471450660,15.79,138.96,138.88,0.17]
[1720471451558,15.79,138.96,138.87,19.94]
[1720471451955,22.9864,138.96,138.87,19.94]
[1720471452157,15.79,138.96,138.87,19.94]
[1720471452780,7.1972,138.95,138.87,19.94]
[1720471453401,15.79,138.96,138.88,0.17]
[1720471453564,15.79,138.96,138.89,100.0]
[1720471454597,9.06798178,139.0,138.91,0.17]
[1720471454884,7.191,139.07,138.97,0.17]
[1720471455080,7.191,139.07,138.97,20.17]
[1720471455892,59.8555,139.1,138.96,19.94]
[1720471456068,7.1923,139.04,138.94,0.17]
[1720471456262,7.1927,139.03,138.94,20.17]
[1720471456698,7.1927,139.03,138.94,0.17]
[1720471456876,7.3623,139.04,138.93,0.17]
[1720471457061,7.3623,139.04,138.93,0.34]
[1720471457261,6.5478,139.03,138.92,20.0]
[1720471457488,22.5473,139.02,138.92,0.17]
[1720471457788,0.17,139.01,138.92,20.17]
[1720471458786,0.17,139.01,138.92,20.0]
[1720471459088,7.5339,139.01,138.91,100.0]
[1720471459590,7.5339,139.01,138.9,6.4567]
[1720471459591,7.1942,139.0,138.9,6.4567]
[1720471460188,0.17,139.01,138.92,100.0]
[1720471461065,0.34,139.01,138.9,100.0]
[1720471461270,7.1943,139.0,138.91,20.0]
[1720471461463,0.17,138.99,138.89,0.17]
[1720471461664,0.17,138.99,138.89,20.17]
[1720471463670,7.3639,139.01,138.9,0.17]
[1720471463979,0.17,139.0,138.9,0.17]
[1720471465490,0.17,139.0,138.89,20.17]
[1720471465799,7.1953,138.98,138.89,20.17]
[1720471465977,0.17,138.99,138.91,100.0]
[1720471466176,22.5476,139.02,138.92,0.17]
[1720471466487,7.1938,139.01,138.92,0.17]
[1720471468086,7.1938,139.01,138.93,100.0]
[1720471468482,22.7174,139.02,138.93,100.0]
[1720471468688,0.17,139.01,138.93,100.0]
[1720471469191,7.3638,139.01,138.93,100.0]
[1720471469890,0.17,139.01,138.93,100.0]
[1720471470195,22.5474,139.02,138.93,100.0]
[1720471470780,0.17,139.01,138.91,100.0]
[1720471470989,7.1949,138.99,138.91,100.0]
[1720471471381,7.1944,139.0,138.91,100.0]
[1720471473800,7.1948,138.99,138.91,100.0]
[1720471474101,7.1942,139.0,138.91,100.0]
[1720471475999,7.1954,138.98,138.9,0.17]
[1720471476300,15.752,138.97,138.9,20.0]
[1720471476499,15.752,138.97,138.88,0.17]
[1720471476686,22.9479,138.97,138.88,20.17]
[1720471477071,22.9479,138.97,138.88,0.17]
[1720471477899,15.752,138.97,138.88,0.17]
[1720471478079,15.752,138.97,138.89,100.0]
[1720471480800,15.752,138.97,138.91,100.0]
[1720471481392,15.752,138.97,138.9,20.1]
[1720471482900,15.752,138.97,138.85,360.994]
[1720471482901,0.17,138.96,138.85,373.73]
[1720471483203,7.3663,138.96,138.87,100.0]
[1720471483702,0.17,138.96,138.87,100.0]
[1720471483887,0.17,138.96,138.85,19.93]
[1720471483888,15.752,138.97,138.89,100.0]
[1720471484093,15.752,138.97,138.92,0.17]
[1720471484418,15.752,138.97,138.93,100.0]
[1720471485302,15.752,138.97,138.92,0.34]
[1720471485479,15.752,138.97,138.92,0.17]
[1720471485683,15.752,138.97,138.91,19.93]
[1720471491322,0.34,138.96,138.86,19.93]
[1720471491616,7.1991,138.91,138.82,100.0]
[1720471491916,0.17,138.92,138.82,100.0]
[1720471492114,7.1978,138.93,138.84,100.0]
[1720471492290,7.3686,138.92,138.84,100.0]
[1720471492494,7.198,138.93,138.84,100.0]
[1720471492712,0.17,138.94,138.86,100.0]
[1720471492924,0.17,138.94,138.81,1513.022218]
[1720471492925,21.4056,138.95,138.88,100.0]
[1720471493101,21.4056,138.95,138.87,19.93]
[1720471493417,21.4056,138.95,138.88,0.17]
[1720471496125,21.4056,138.95,138.87,19.93]
[1720471498124,0.17,138.94,138.85,0.17]
[1720471498503,7.3676,138.94,138.85,0.17]
[1720471498926,0.17,138.94,138.85,0.17]
[1720471499828,0.17,138.94,138.85,120.17]
[1720471500012,6.5347,138.9,138.82,119.93]
[1720471500205,6.5347,138.9,138.84,100.0]
[1720471500713,6.5347,138.9,138.83,20.0]
[1720471501424,15.1798,138.89,138.81,1493.092218]
[1720471501607,15.1798,138.89,138.81,1513.022218]
[1720471502333,15.1798,138.89,138.81,1613.022218]
[1720471502712,15.1798,138.89,138.82,20.0]
[1720471503207,15.1798,138.89,138.82,120.0]
[1720471503406,15.1798,138.89,138.86,100.0]
[1720471503931,15.1798,138.92,138.86,100.0]
[1720471504515,15.1798,138.92,138.84,19.93]
[1720471504717,15.1798,138.92,138.85,20.0]
[1720471504927,15.1798,138.92,138.84,19.93]
[1720471505123,22.3781,138.92,138.84,19.93]
[1720471505805,15.1798,138.92,138.84,19.93]
[1720471506205,15.1798,138.92,138.83,0.17]
[1720471506533,15.1798,138.92,138.83,40.1]
[1720471506931,7.1994,138.9,138.82,100.0]
[1720471507111,7.1991,138.91,138.82,0.17]
[1720471507816,15.1798,138.92,138.82,100.34]
[1720471508637,0.17,138.91,138.82,100.17]
[1720471509034,0.17,138.91,138.81,1513.022218]
[1720471509035,0.34,138.91,138.81,1513.022218]
[1720471509205,22.0965,138.9,138.81,1513.022218]
[1720471509414,0.17,138.89,138.81,1493.092218]
[1720471509612,7.2006,138.88,138.81,1493.092218]
[1720471510215,7.2015,138.86,138.81,1493.092218]
[1720471510414,16.6065,138.85,138.81,1493.092218]
[1720471510630,16.6065,138.85,138.81,1593.092218]
[1720471510910,16.6065,138.85,138.81,1613.022218]
[1720471512719,16.6065,138.85,138.81,1513.022218]
[1720471513128,22.4924,138.9,138.83,100.0]
[1720471513342,22.4924,138.9,138.84,119.93]
[1720471513633,16.0576,138.9,138.87,100.0]
[1720471513847,16.0576,138.9,138.87,119.93]
[1720471514840,16.0576,138.9,138.87,19.93]
[1720471516425,6.4139,138.93,138.89,100.0]
[1720471516827,16.1325,138.94,138.91,100.0]
[1720471517029,6.525,138.97,138.93,100.0]
[1720471517541,6.525,138.97,138.93,19.93]
[1720471517722,6.525,138.97,138.91,100.0]
[1720471517924,6.525,138.97,138.91,119.93]
[1720471518232,6.525,138.97,138.93,100.0]
[1720471518645,6.525,138.97,138.91,119.93]
[1720471519019,6.525,138.97,138.92,0.17]
[1720471519228,6.525,138.97,138.93,100.0]
[1720471520129,6.525,138.97,138.92,0.17]
[1720471521951,6.525,138.97,138.92,0.34]
[1720471522121,6.525,138.97,138.92,0.17]
[1720471522834,6.525,138.97,138.92,0.34]
[1720471523038,6.525,138.97,138.93,100.0]
[1720471524442,6.525,138.97,138.92,0.17]
[1720471524634,6.525,138.97,138.91,119.93]
[1720471526127,6.525,138.97,138.92,0.17]
[1720471526344,6.525,138.97,138.92,0.34]
[1720471526544,6.525,138.97,138.93,100.0]
[1720471528326,6.525,138.97,138.91,19.93]
[1720471528929,6.525,138.97,138.93,0.17]
[1720471529339,6.525,138.97,138.92,100.0]
[1720471529538,6.525,138.97,138.93,0.17]
[1720471529844,6.525,138.97,138.94,100.0]
[1720471530940,6.525,138.97,138.91,119.93]
[1720471531150,6.525,138.97,138.92,0.17]
[1720471531953,6.525,138.97,138.93,100.0]
[1720471534063,6.525,138.97,138.92,0.17]
[1720471534875,22.0507,139.04,138.93,100.0]
[1720471535161,22.0507,139.04,139.01,20.1]
[1720471535383,15.5232,139.13,139.04,100.0]
[1720471535563,7.188,139.12,139.04,100.0]
[1720471536959,7.188,139.12,139.03,0.17]
[1720471537146,0.17,139.11,139.02,0.17]
[1720471537353,15.5232,139.09,139.02,0.17]
[1720471538259,15.5232,139.09,139.0,100.0]
[1720471538570,15.5232,139.09,138.98,19.93]
[1720471538571,15.5232,139.06,138.98,19.93]
[1720471538747,0.17,139.05,138.98,19.93]
[1720471539960,7.1931,139.03,138.95,19.93]
[1720471540265,7.1923,139.04,138.95,19.93]
[1720471540875,0.17,139.05,138.95,19.93]
[1720471541261,0.17,139.05,138.97,100.0]
[1720471541464,15.5232,139.06,138.99,100.0]
[1720471541666,22.7143,139.06,138.97,100.0]
[1720471541873,0.17,139.05,138.97,100.0]
[1720471542154,15.5232,139.06,138.97,100.0]
[1720471542580,22.7143,139.06,138.97,100.0]
[1720471543299,0.17,139.05,138.97,100.0]
[1720471543473,22.7143,139.06,138.97,100.0]
[1720471543790,22.7143,139.06,138.99,100.0]
[1720471543791,15.5232,139.06,138.99,100.0]
[1720471543965,15.5232,139.06,139.01,100.0]
[1720471544296,6.5275,139.07,139.05,100.0]
[1720471546103,15.7988,139.09,139.05,100.0]
[1720471546470,15.7988,139.09,139.03,100.0]
[1720471547886,15.7988,139.09,139.01,119.93]
[1720471548390,6.4473,139.03,138.96,100.0]
[1720471548600,15.7988,139.02,138.96,119.93]
[1720471549270,15.7988,139.02,138.98,100.0]
[1720471550609,15.7988,139.02,138.96,119.93]
[1720471554711,15.7988,139.02,138.98,100.0]
[1720471555007,6.4473,139.03,139.01,100.0]
[1720471555212,15.7988,139.05,139.03,100.0]
[1720471555395,6.4473,139.07,139.02,20.1]
[1720471556313,6.4473,139.07,139.03,100.0]
[1720471559223,6.4473,139.07,138.99,100.0]
[1720471559402,6.4473,139.07,139.0,20.0]
[1720471559602,6.4473,139.07,138.99,100.0]
[1720471560519,15.7988,139.08,139.0,0.17]
[1720471560822,6.1765,139.1,139.06,100.0]
[1720471561837,6.1765,139.1,139.07,0.17]
[1720471562205,7.51425647,139.18,139.1,100.0]
[1720471562206,6.0682,139.13,139.1,100.0]
[1720471562410,6.0682,139.13,139.11,0.17]
[1720471562613,15.8524,139.14,139.11,0.17]
[1720471563019,15.8524,139.14,139.1,100.0]
[1720471563420,15.8524,139.14,139.11,0.17]
[1720471563726,15.8524,139.14,139.1,100.0]
[1720471566235,15.8524,139.14,139.06,100.0]
[1720471566529,15.8524,139.14,139.07,20.0]
[1720471566929,15.8524,139.14,139.1,100.0]
[1720471567311,15.8524,139.14,139.12,100.0]
[1720471567510,15.8524,139.14,139.11,0.17]
[1720471567709,15.8524,139.14,139.08,0.17]
[1720471567905,15.8524,139.14,139.08,0.34]
[1720471568723,15.8524,139.14,139.1,0.17]
[1720471569727,15.8524,139.14,139.08,0.17]
[1720471570115,21.1456,139.17,139.12,0.17]
[1720471570420,21.1456,139.17,139.13,100.0]
[1720471576822,22.2850352,139.21,139.16,100.0]
[1720471577417,22.2850352,139.21,139.17,0.17]
[1720471578334,7.1842,139.2,139.11,100.0]
[1720471578514,22.2850352,139.21,139.12,19.86]
[1720471578515,7.1848,139.19,139.12,19.86]
[1720471578912,22.2850352,139.21,139.12,19.86]
[1720471579229,22.2850352,139.21,139.13,100.0]
[1720471579632,22.2850352,139.21,139.17,100.0]
[1720471580724,22.2850352,139.21,139.16,0.17]
[1720471581536,22.2850352,139.21,139.15,119.86]
[1720471581738,22.2850352,139.21,139.15,19.86]
[1720471582930,22.2850352,139.21,139.15,119.86]
[1720471584238,29.4685352,139.21,139.14,0.17]
[1720471584425,22.2850352,139.21,139.14,20.17]
[1720471584824,22.2850352,139.21,139.15,100.0]
[1720471585225,22.2850352,139.21,139.17,100.0]
[1720471587237,22.2850352,139.21,139.16,0.17]
[1720471587238,22.2850352,139.21,139.14,20.0]
[1720471590344,0.17,139.2,139.1,100.0]
[1720471590544,0.17,139.2,139.11,19.86]
[1720471590863,7.3541,139.2,139.11,19.86]
[1720471591030,0.17,139.2,139.11,19.86]
[1720471591642,0.17,139.2,139.12,100.0]
[1720471591835,22.2850352,139.21,139.12,100.0]
[1720471593653,29.4683352,139.21,139.12,100.0]
[1720471594631,7.1839,139.2,139.12,100.0]
[1720471595038,29.4685352,139.21,139.12,100.0]
[1720471595237,0.17,139.2,139.12,100.0]
[1720471595639,0.34,139.2,139.1,100.0]
[1720471595841,24.6527,139.18,139.07,100.0]
[1720471596148,7.3556,139.17,139.07,19.86]
[1720471596445,7.1859,139.16,139.07,19.86]
[1720471596648,7.1859,139.16,139.05,100.0]
[1720471596649,6.5201,139.12,139.05,100.0]
[1720471596951,6.5201,139.12,139.05,119.86]
[1720471598540,6.5201,139.12,139.07,100.0]
[1720471598753,6.5201,139.12,139.05,19.86]
[1720471598754,6.5201,139.12,139.05,119.86]
[1720471598936,6.5201,139.12,139.05,19.86]
[1720471600458,6.5201,139.12,139.04,0.17]
[1720471600459,6.5201,139.12,139.04,20.03]
[1720471600757,6.5201,139.12,139.05,20.0]
[1720471601050,6.5201,139.12,139.04,20.03]
[1720471601252,6.5201,139.12,139.04,0.17]
[1720471601454,6.5201,139.12,139.04,40.03]
[1720471601954,15.7196,139.11,139.03,100.0]
[1720471602133,15.7196,139.11,139.0,19.86]
[1720471602134,7.3594,139.1,139.0,19.86]
[1720471602330,13.6121,139.09,139.0,19.86]
[1720471602533,15.7196,139.07,139.0,19.86]
[1720471603735,6.1964,139.06,138.96,100.0]
[1720471603959,6.1964,139.06,138.98,19.86]
[1720471604254,6.1964,139.06,138.96,100.0]
[1720471604454,22.4225,139.05,138.93,100.0]
[1720471604756,0.17,139.04,138.93,119.86]
[1720471604941,6.0217,139.03,138.93,119.86]
[1720471605141,6.0217,139.03,138.92,273.66]
[1720471605142,0.17,139.02,138.92,273.66]
[1720471605337,21.2524,138.99,138.84,253.8]
[1720471605545,21.2524,138.99,138.86,19.86]
[1720471605878,0.17,138.98,138.87,100.0]
[1720471606038,21.0824,138.99,138.9,100.0]
[1720471607459,0.17,138.98,138.9,100.0]
[1720471607938,21.0824,138.99,138.9,100.0]
[1720471608141,28.2772,138.99,138.9,100.0]
[1720471608341,0.17,138.98,138.9,100.0]
[1720471608644,7.3653,138.98,138.87,100.0]
[1720471608855,0.17,138.98,138.91,100.0]
[1720471609058,21.0824,138.99,138.91,100.0]
[1720471609771,21.0824,138.99,138.93,100.0]
[1720471610458,21.0824,138.99,138.91,100.0]
[1720471610996,21.0824,138.99,138.9,0.17]
[1720471610997,0.17,138.98,138.9,0.17]
[1720471611156,0.17,138.98,138.9,20.17]
[1720471611344,0.17,138.98,138.89,100.0]
[1720471612070,0.17,138.98,138.88,0.17]
[1720471612272,0.17,138.98,138.88,20.17]
[1720471612445,7.1958,138.97,138.88,20.17]
[1720471612653,7.3654,138.98,138.88,20.17]
[1720471613577,0.17,138.98,138.88,20.17]
[1720471613745,0.17,138.98,138.9,100.0]
[1720471614264,21.0824,138.99,138.9,100.0]
[1720471614466,21.0824,138.99,138.91,0.17]
[1720471615344,21.0824,138.99,138.89,0.17]
[1720471615545,0.17,138.98,138.89,0.17]
[1720471615972,28.2773,138.99,138.89,0.17]
[1720471615973,21.0824,138.99,138.91,100.0]
[1720471618154,7.197,138.95,138.85,5.75730851]
[1720471618465,6.6352,138.93,138.84,100.0]
[1720471620073,15.3248,138.92,138.85,20.0]
[1720471620279,15.3248,138.92,138.87,100.0]
[1720471621273,15.3248,138.92,138.88,0.17]
[1720471622369,6.6352,138.93,138.88,0.17]
[1720471622546,24.25466178,139.05,138.9,0.17]
[1720471622547,21.7948,138.96,138.9,0.17]
[1720471623582,21.7948,138.96,138.89,0.17]
[1720471624496,0.17,138.94,138.84,7.52301378]
[1720471624778,0.17,138.94,138.73,22.2789352]
[1720471624779,6.1717,138.88,138.73,22.2789352]
[1720471625353,7.201,138.87,138.73,22.2789352]
[1720471625556,7.201,138.87,138.73,43.8589352]
[1720471625767,13.3723,138.88,138.73,43.8589352]
[1720471625967,13.3723,138.88,138.73,49.65570436]
[1720471627090,7.201,138.87,138.73,49.65570436]
[1720471627765,13.3723,138.88,138.73,49.65570436]
[1720471628201,6.1717,138.88,138.73,49.65570436]
[1720471628497,7.2016,138.86,138.73,49.65570436]
[1720471628991,7.3711,138.87,138.73,49.65570436]
[1720471629197,7.3711,138.87,138.82,7.2032]
[1720471629689,7.2015,138.86,138.82,7.2032]
[1720471630379,7.371,138.87,138.73,49.65570436]
[1720471630584,7.2026,138.84,138.73,28.07570436]
[1720471630885,0.17,138.87,138.73,28.07570436]
[1720471630886,16.0127,138.83,138.73,28.07570436]
[1720471632268,16.0127,138.83,138.81,1500.296118]
[1720471633165,16.2235,138.87,138.81,1493.092218]
[1720471633583,7.2025,138.84,138.81,1493.092218]
[1720471633895,7.2031,138.83,138.81,1493.092218]
[1720471634078,13.628,138.82,138.81,1493.092218]
[1720471634485,6.4245,138.82,138.81,1493.092218]
[1720471635775,6.4245,138.82,138.81,1500.296218]